[Event "Titled Tuesday Blitz July 25 Late 2023"]
[White "Trifan, Andrei Ioan"]
[Black "SergioMoralesG"]
[WhiteFideId "12967068"]
[WhiteElo "2587"]
[BlackElo "2446"]
[Result "0-1"]
[Round "7"]
[TimeControl "180+2"]
[Date "2023.07.25"]
[WhiteClock "0:00:07"]
[BlackClock "0:00:19"]
[Board "62"]

1. Nf3 {[%clk 0:03:00]}  d5 {[%clk 0:02:58]} 2. d4 {[%clk 0:02:56]}  Nf6 {[%clk 0:02:57]} 3. c4 {[%clk 0:02:56]}  c6 {[%clk 0:02:56]} 4. Nc3 {[%clk 0:02:55]}  e6 {[%clk 0:02:55]} 5. Bf4 {[%clk 0:02:52]}  dxc4 {[%clk 0:02:52]} 6. a4 {[%clk 0:02:45]}  Bb4 {[%clk 0:02:51]} 7. e4 {[%clk 0:02:41]}  Nxe4 {[%clk 0:02:43]} 8. Qc2 {[%clk 0:02:38]}  Qa5 {[%clk 0:02:37]} 9. Qxe4 {[%clk 0:02:10]}  Bxc3+ {[%clk 0:02:36]} 10. Bd2 {[%clk 0:02:11]}  Bxd2+ {[%clk 0:02:31]} 11. Nxd2 {[%clk 0:02:12]}  c3 {[%clk 0:02:16]} 12. bxc3 {[%clk 0:01:58]}  Qxc3 {[%clk 0:02:15]} 13. Rd1 {[%clk 0:01:57]}  Nd7 {[%clk 0:01:56]} 14. Bd3 {[%clk 0:01:54]}  Nf6 {[%clk 0:01:54]} 15. Qe3 {[%clk 0:01:24]}  Nd5 {[%clk 0:01:50]} 16. Qe4 {[%clk 0:01:24]}  f5 {[%clk 0:01:38]} 17. Qf3 {[%clk 0:01:21]}  Qxd4 {[%clk 0:01:07]} 18. O-O {[%clk 0:01:18]}  O-O {[%clk 0:01:04]} 19. Qg3 {[%clk 0:01:08]}  Qg4 {[%clk 0:01:01]} 20. Qd6 {[%clk 0:00:58]}  Nf4 {[%clk 0:00:54]} 21. g3 {[%clk 0:00:58]}  Nxd3 {[%clk 0:00:51]} 22. Qxd3 {[%clk 0:00:59]}  e5 {[%clk 0:00:50]} 23. Nc4 {[%clk 0:00:57]}  e4 {[%clk 0:00:45]} 24. Qd6 {[%clk 0:00:54]}  f4 {[%clk 0:00:38]} 25. Rfe1 {[%clk 0:00:41]}  Bf5 {[%clk 0:00:35]} 26. Qe7 {[%clk 0:00:20]}  Rae8 {[%clk 0:00:32]} 27. Qxb7 {[%clk 0:00:20]}  e3 {[%clk 0:00:29]} 28. Qxa7 {[%clk 0:00:20]}  Be4 {[%clk 0:00:25]} 29. Nd6 {[%clk 0:00:17]}  Bf3 {[%clk 0:00:20]} 30. Nxe8 {[%clk 0:00:16]}  Rxe8 {[%clk 0:00:20]} 31. Rc1 {[%clk 0:00:07]}  Qh3 {[%clk 0:00:19]} 0-1


[Site "https://www.chess.com"]

[Event "Titled Tuesday Blitz July 25 Late 2023"]
[White "Fiorito, Joaquin"]
[Black "ChessSG1"]
[WhiteFideId "180173"]
[WhiteElo "2773"]
[BlackElo "2408"]
[Result "0-1"]
[Round "7"]
[TimeControl "180+2"]
[Date "2023.07.25"]
[WhiteClock "0:00:36"]
[BlackClock "0:00:07"]
[Board "65"]

1. d4 {[%clk 0:03:00]}  d5 {[%clk 0:02:58]} 2. Nc3 {[%clk 0:03:00]}  Nf6 {[%clk 0:02:54]} 3. Bf4 {[%clk 0:03:00]}  a6 {[%clk 0:02:52]} 4. e3 {[%clk 0:03:00]}  c5 {[%clk 0:02:49]} 5. dxc5 {[%clk 0:02:56]}  e6 {[%clk 0:02:41]} 6. b4 {[%clk 0:02:54]}  a5 {[%clk 0:02:40]} 7. a3 {[%clk 0:02:40]}  b6 {[%clk 0:02:40]} 8. Bxb8 {[%clk 0:02:20]}  Rxb8 {[%clk 0:02:20]} 9. Bb5+ {[%clk 0:02:21]}  Ke7 {[%clk 0:02:20]} 10. Nge2 {[%clk 0:02:12]}  bxc5 {[%clk 0:02:14]} 11. bxc5 {[%clk 0:02:12]}  e5 {[%clk 0:02:05]} 12. O-O {[%clk 0:02:09]}  Be6 {[%clk 0:01:54]} 13. a4 {[%clk 0:02:05]}  g6 {[%clk 0:01:50]} 14. f4 {[%clk 0:02:04]}  Ng4 {[%clk 0:01:49]} 15. Qd2 {[%clk 0:02:01]}  Bg7 {[%clk 0:01:47]} 16. h3 {[%clk 0:01:59]}  Nxe3 {[%clk 0:01:40]} 17. Qxe3 {[%clk 0:01:59]}  d4 {[%clk 0:01:40]} 18. Qf3 {[%clk 0:02:00]}  dxc3 {[%clk 0:01:38]} 19. Nxc3 {[%clk 0:01:54]}  e4 {[%clk 0:01:38]} 20. Nxe4 {[%clk 0:01:51]}  Bxa1 {[%clk 0:01:26]} 21. f5 {[%clk 0:01:46]}  Bd4+ {[%clk 0:01:18]} 22. Kh1 {[%clk 0:01:45]}  gxf5 {[%clk 0:01:09]} 23. Nd6 {[%clk 0:01:44]}  Rg8 {[%clk 0:00:25]} 24. Re1 {[%clk 0:01:40]}  Bxc5 {[%clk 0:00:20]} 25. Nxf5+ {[%clk 0:01:39]}  Kf8 {[%clk 0:00:20]} 26. Nh6 {[%clk 0:01:20]}  Qd2 {[%clk 0:00:19]} 27. Rf1 {[%clk 0:01:12]}  Qxh6 {[%clk 0:00:18]} 28. Qc6 {[%clk 0:01:10]}  Qe3 {[%clk 0:00:13]} 29. Qc7 {[%clk 0:01:04]}  Rc8 {[%clk 0:00:10]} 30. Qb7 {[%clk 0:01:03]}  Kg7 {[%clk 0:00:10]} 31. Rf3 {[%clk 0:00:52]}  Qe1+ {[%clk 0:00:09]} 32. Rf1 {[%clk 0:00:52]}  Qe3 {[%clk 0:00:09]} 33. Ba6 {[%clk 0:00:38]}  Kh8 {[%clk 0:00:08]} 34. Qb3 {[%clk 0:00:36]}  Bxb3 {[%clk 0:00:07]} 0-1


[Site "https://www.chess.com"]

[Event "Titled Tuesday Blitz July 25 Late 2023"]
[White "Mekhitarian, Krikor Sevag"]
[Black "Grossboss19"]
[WhiteFideId "2107660"]
[WhiteElo "2752"]
[BlackElo "2467"]
[Result "0-1"]
[Round "7"]
[TimeControl "180+2"]
[Date "2023.07.25"]
[WhiteClock "0:00:11"]
[BlackClock "0:00:22"]
[Board "66"]

1. Nf3 {[%clk 0:03:00]}  d5 {[%clk 0:02:57]} 2. c4 {[%clk 0:03:00]}  d4 {[%clk 0:02:55]} 3. b4 {[%clk 0:02:59]}  f6 {[%clk 0:02:55]} 4. Na3 {[%clk 0:02:59]}  e5 {[%clk 0:02:53]} 5. Nc2 {[%clk 0:03:00]}  a5 {[%clk 0:02:52]} 6. b5 {[%clk 0:02:56]}  c5 {[%clk 0:02:51]} 7. d3 {[%clk 0:02:56]}  b6 {[%clk 0:02:51]} 8. g3 {[%clk 0:02:57]}  Bb7 {[%clk 0:02:51]} 9. Bg2 {[%clk 0:02:58]}  Ra7 {[%clk 0:02:50]} 10. O-O {[%clk 0:02:58]}  Bd6 {[%clk 0:02:50]} 11. e3 {[%clk 0:02:58]}  Ne7 {[%clk 0:02:48]} 12. exd4 {[%clk 0:02:59]}  cxd4 {[%clk 0:02:48]} 13. Nd2 {[%clk 0:02:47]}  Bxg2 {[%clk 0:02:46]} 14. Kxg2 {[%clk 0:02:48]}  Nd7 {[%clk 0:02:43]} 15. Re1 {[%clk 0:02:47]}  Nc5 {[%clk 0:02:41]} 16. Qf3 {[%clk 0:02:47]}  O-O {[%clk 0:02:34]} 17. Ba3 {[%clk 0:02:47]}  Qa8 {[%clk 0:02:32]} 18. Bxc5 {[%clk 0:02:47]}  Qxf3+ {[%clk 0:02:31]} 19. Kxf3 {[%clk 0:02:46]}  Bxc5 {[%clk 0:02:31]} 20. g4 {[%clk 0:02:47]}  Nc8 {[%clk 0:02:27]} 21. a4 {[%clk 0:02:47]}  Nd6 {[%clk 0:02:27]} 22. Kg2 {[%clk 0:02:44]}  g6 {[%clk 0:02:23]} 23. Re2 {[%clk 0:02:44]}  Re7 {[%clk 0:02:14]} 24. f4 {[%clk 0:02:40]}  e4 {[%clk 0:01:27]} 25. Nxe4 {[%clk 0:02:15]}  Nxe4 {[%clk 0:01:21]} 26. Rxe4 {[%clk 0:02:16]}  Rxe4 {[%clk 0:01:21]} 27. dxe4 {[%clk 0:02:16]}  d3 {[%clk 0:01:22]} 28. Ne1 {[%clk 0:02:17]}  Rd8 {[%clk 0:01:21]} 29. Rd1 {[%clk 0:02:16]}  d2 {[%clk 0:01:22]} 30. Nf3 {[%clk 0:02:16]}  Be3 {[%clk 0:01:21]} 31. f5 {[%clk 0:02:15]}  Rc8 {[%clk 0:01:15]} 32. Kf1 {[%clk 0:01:58]}  Rxc4 {[%clk 0:01:14]} 33. Ke2 {[%clk 0:01:59]}  Bf4 {[%clk 0:01:09]} 34. Nxd2 {[%clk 0:01:55]}  Rxa4 {[%clk 0:01:09]} 35. Kd3 {[%clk 0:01:25]}  Rb4 {[%clk 0:01:04]} 36. Nc4 {[%clk 0:01:24]}  Rxb5 {[%clk 0:01:02]} 37. Rf1 {[%clk 0:01:18]}  g5 {[%clk 0:00:59]} 38. h4 {[%clk 0:01:18]}  h6 {[%clk 0:00:54]} 39. h5 {[%clk 0:01:15]}  Be5 {[%clk 0:00:37]} 40. Nxe5 {[%clk 0:00:56]}  fxe5 {[%clk 0:00:37]} 41. Rc1 {[%clk 0:00:57]}  Rc5 {[%clk 0:00:35]} 42. Rd1 {[%clk 0:00:42]}  Kf7 {[%clk 0:00:30]} 43. Ke3 {[%clk 0:00:43]}  Ke7 {[%clk 0:00:30]} 44. f6+ {[%clk 0:00:41]}  Ke6 {[%clk 0:00:26]} 45. Rd8 {[%clk 0:00:34]}  a4 {[%clk 0:00:23]} 46. Rb8 {[%clk 0:00:26]}  Rb5 {[%clk 0:00:22]} 47. Kd3 {[%clk 0:00:24]}  Kxf6 {[%clk 0:00:20]} 48. Kc4 {[%clk 0:00:24]}  Rb2 {[%clk 0:00:20]} 49. Kd5 {[%clk 0:00:25]}  Rd2+ {[%clk 0:00:19]} 50. Kc6 {[%clk 0:00:24]}  Rd4 {[%clk 0:00:19]} 51. Ra8 {[%clk 0:00:18]}  Rxe4 {[%clk 0:00:19]} 52. Kxb6 {[%clk 0:00:17]}  Rxg4 {[%clk 0:00:19]} 53. Rh8 {[%clk 0:00:18]}  Kg7 {[%clk 0:00:19]} 54. Re8 {[%clk 0:00:18]}  Rh4 {[%clk 0:00:19]} 55. Rxe5 {[%clk 0:00:17]}  Rxh5 {[%clk 0:00:20]} 56. Ra5 {[%clk 0:00:17]}  Rh4 {[%clk 0:00:21]} 57. Kc5 {[%clk 0:00:18]}  Kg6 {[%clk 0:00:21]} 58. Kd5 {[%clk 0:00:18]}  Rf4 {[%clk 0:00:22]} 59. Ke5 {[%clk 0:00:18]}  Kh5 {[%clk 0:00:22]} 60. Ra6 {[%clk 0:00:11]}  Rb4 {[%clk 0:00:22]} 0-1


[Site "https://www.chess.com"]

[Event "Titled Tuesday Blitz July 25 Late 2023"]
[White "Kirillov, Dmitry"]
[Black "Pakleza, Zbigniew"]
[WhiteFideId "34180572"]
[BlackFideId "1119290"]
[WhiteElo "2464"]
[BlackElo "2750"]
[Result "0-1"]
[Round "7"]
[TimeControl "180+2"]
[Date "2023.07.25"]
[WhiteClock "0:00:10"]
[BlackClock "0:00:29"]
[Board "67"]

1. Nf3 {[%clk 0:02:51]}  d5 {[%clk 0:02:59]} 2. d4 {[%clk 0:02:51]}  Nf6 {[%clk 0:02:59]} 3. c4 {[%clk 0:02:51]}  c6 {[%clk 0:02:59]} 4. e3 {[%clk 0:02:51]}  Bf5 {[%clk 0:02:59]} 5. cxd5 {[%clk 0:02:50]}  cxd5 {[%clk 0:02:59]} 6. Qb3 {[%clk 0:02:51]}  Qb6 {[%clk 0:02:56]} 7. Qxb6 {[%clk 0:02:51]}  axb6 {[%clk 0:02:57]} 8. Nc3 {[%clk 0:02:51]}  e6 {[%clk 0:02:54]} 9. Bb5+ {[%clk 0:02:50]}  Nfd7 {[%clk 0:02:53]} 10. Bd2 {[%clk 0:02:40]}  Bd6 {[%clk 0:02:49]} 11. Nh4 {[%clk 0:02:20]}  Bg6 {[%clk 0:02:33]} 12. Nxg6 {[%clk 0:02:19]}  hxg6 {[%clk 0:02:34]} 13. h3 {[%clk 0:02:20]}  Nc6 {[%clk 0:02:34]} 14. Ke2 {[%clk 0:02:15]}  Ke7 {[%clk 0:02:31]} 15. Rhc1 {[%clk 0:02:14]}  f5 {[%clk 0:02:27]} 16. Na4 {[%clk 0:02:03]}  Rhc8 {[%clk 0:02:22]} 17. a3 {[%clk 0:01:59]}  Rc7 {[%clk 0:01:59]} 18. Rc3 {[%clk 0:01:46]}  Rac8 {[%clk 0:01:58]} 19. Rac1 {[%clk 0:01:45]}  e5 {[%clk 0:01:52]} 20. dxe5 {[%clk 0:01:26]}  Bxe5 {[%clk 0:01:53]} 21. R3c2 {[%clk 0:01:24]}  d4 {[%clk 0:01:22]} 22. Bxc6 {[%clk 0:01:09]}  Rxc6 {[%clk 0:01:10]} 23. Rxc6 {[%clk 0:01:07]}  bxc6 {[%clk 0:01:09]} 24. Bb4+ {[%clk 0:00:48]}  Ke6 {[%clk 0:00:59]} 25. exd4 {[%clk 0:00:42]}  Bxd4 {[%clk 0:01:00]} 26. Rd1 {[%clk 0:00:41]}  c5 {[%clk 0:01:00]} 27. Bc3 {[%clk 0:00:34]}  b5 {[%clk 0:00:49]} 28. Bxd4 {[%clk 0:00:13]}  cxd4 {[%clk 0:00:50]} 29. Rxd4 {[%clk 0:00:12]}  bxa4 {[%clk 0:00:50]} 30. Rxa4 {[%clk 0:00:12]}  Rc2+ {[%clk 0:00:49]} 31. Kf3 {[%clk 0:00:12]}  Rxb2 {[%clk 0:00:45]} 32. Ra6+ {[%clk 0:00:13]}  Rb6 {[%clk 0:00:45]} 33. Rxb6+ {[%clk 0:00:11]}  Nxb6 {[%clk 0:00:46]} 34. Kf4 {[%clk 0:00:11]}  Kf6 {[%clk 0:00:45]} 35. h4 {[%clk 0:00:11]}  Nd5+ {[%clk 0:00:43]} 36. Kf3 {[%clk 0:00:12]}  Nc3 {[%clk 0:00:41]} 37. g4 {[%clk 0:00:11]}  Ke5 {[%clk 0:00:39]} 38. h5 {[%clk 0:00:11]}  gxh5 {[%clk 0:00:32]} 39. gxh5 {[%clk 0:00:11]}  Kf6 {[%clk 0:00:32]} 40. Kf4 {[%clk 0:00:10]}  Nd5+ {[%clk 0:00:32]} 41. Kg3 {[%clk 0:00:11]}  Kg5 {[%clk 0:00:32]} 42. f4+ {[%clk 0:00:11]}  Nxf4 {[%clk 0:00:29]} 43. a4 {[%clk 0:00:10]}  Nxh5+ {[%clk 0:00:29]} 0-1


[Site "https://www.chess.com"]

[Event "Titled Tuesday Blitz July 25 Late 2023"]
[White "Perske, Thore"]
[Black "Morefield, Jason"]
[WhiteFideId "12902195"]
[BlackFideId "30920825"]
[WhiteElo "2463"]
[BlackElo "2741"]
[Result "1/2-1/2"]
[Round "7"]
[TimeControl "180+2"]
[Date "2023.07.25"]
[WhiteClock "0:00:18"]
[BlackClock "0:00:38"]
[Board "68"]

1. d4 {[%clk 0:03:00]}  Nf6 {[%clk 0:02:24]} 2. g3 {[%clk 0:03:00]}  d5 {[%clk 0:02:22]} 3. Bg2 {[%clk 0:03:00]}  c5 {[%clk 0:02:21]} 4. Nf3 {[%clk 0:03:00]}  cxd4 {[%clk 0:02:21]} 5. O-O {[%clk 0:03:01]}  h6 {[%clk 0:02:22]} 6. c4 {[%clk 0:03:01]}  dxc3 {[%clk 0:02:20]} 7. Nxc3 {[%clk 0:03:01]}  e6 {[%clk 0:02:21]} 8. Qa4+ {[%clk 0:03:01]}  Bd7 {[%clk 0:02:20]} 9. Qb3 {[%clk 0:03:01]}  Bc6 {[%clk 0:02:19]} 10. Rd1 {[%clk 0:02:57]}  Nbd7 {[%clk 0:02:19]} 11. e4 {[%clk 0:02:45]}  Nxe4 {[%clk 0:02:08]} 12. Nxe4 {[%clk 0:02:32]}  dxe4 {[%clk 0:02:09]} 13. Ne5 {[%clk 0:02:17]}  Nxe5 {[%clk 0:02:04]} 14. Rxd8+ {[%clk 0:02:13]}  Rxd8 {[%clk 0:02:05]} 15. Be3 {[%clk 0:02:04]}  a6 {[%clk 0:02:02]} 16. Bb6 {[%clk 0:01:54]}  Rd3 {[%clk 0:01:58]} 17. Qc2 {[%clk 0:01:47]}  Be7 {[%clk 0:01:50]} 18. a4 {[%clk 0:01:47]}  O-O {[%clk 0:01:48]} 19. a5 {[%clk 0:01:47]}  Bf6 {[%clk 0:01:37]} 20. Re1 {[%clk 0:01:42]}  Nf3+ {[%clk 0:01:32]} 21. Bxf3 {[%clk 0:01:42]}  Rxf3 {[%clk 0:01:33]} 22. Rxe4 {[%clk 0:01:34]}  Bxe4 {[%clk 0:01:30]} 23. Qxe4 {[%clk 0:01:35]}  Rb3 {[%clk 0:01:30]} 24. Qxb7 {[%clk 0:01:32]}  Rxb2 {[%clk 0:01:29]} 25. Qxa6 {[%clk 0:01:32]}  Bd8 {[%clk 0:01:19]} 26. Qa7 {[%clk 0:01:17]}  Bxb6 {[%clk 0:01:14]} 27. axb6 {[%clk 0:01:18]}  Rd8 {[%clk 0:01:14]} 28. Kg2 {[%clk 0:00:54]}  Rd5 {[%clk 0:01:02]} 29. Qe7 {[%clk 0:00:41]}  Rxb6 {[%clk 0:00:45]} 30. Qe8+ {[%clk 0:00:40]}  Kh7 {[%clk 0:00:45]} 31. Qxf7 {[%clk 0:00:39]}  Rf5 {[%clk 0:00:44]} 32. Qd7 {[%clk 0:00:36]}  Rb2 {[%clk 0:00:40]} 33. Qxe6 {[%clk 0:00:26]}  Rfxf2+ {[%clk 0:00:40]} 34. Kg1 {[%clk 0:00:25]}  Rg2+ {[%clk 0:00:37]} 35. Kf1 {[%clk 0:00:18]}  Rxh2 {[%clk 0:00:36]} 36. Qe4+ {[%clk 0:00:18]}  Kg8 {[%clk 0:00:35]} 37. Qe8+ {[%clk 0:00:18]}  Kh7 {[%clk 0:00:35]} 38. Qe4+ {[%clk 0:00:18]}  g6 {[%clk 0:00:36]} 39. Qe7+ {[%clk 0:00:18]}  Kg8 {[%clk 0:00:37]} 40. Qe8+ {[%clk 0:00:18]}  Kg7 {[%clk 0:00:37]} 41. Qe7+ {[%clk 0:00:18]}  Kg8 {[%clk 0:00:38]} 42. Qe8+ {[%clk 0:00:18]}  Kg7 {[%clk 0:00:38]} 43. Qe7+ {[%clk 0:00:18]}  Kg8 {[%clk 0:00:38]} 1/2-1/2


[Site "https://www.chess.com"]

[Event "Titled Tuesday Blitz July 25 Late 2023"]
[White "Krishna C R G"]
[Black "Dinu, Dumitru-Daniel"]
[WhiteFideId "5018625"]
[BlackFideId "1208403"]
[WhiteElo "2734"]
[BlackElo "2462"]
[Result "1-0"]
[Round "7"]
[TimeControl "180+2"]
[Date "2023.07.25"]
[WhiteClock "0:01:31"]
[BlackClock "0:01:18"]
[Board "69"]

1. e4 {[%clk 0:03:00]}  c5 {[%clk 0:02:59]} 2. Nc3 {[%clk 0:03:00]}  Nc6 {[%clk 0:02:59]} 3. f4 {[%clk 0:03:00]}  g6 {[%clk 0:02:58]} 4. Bc4 {[%clk 0:03:00]}  Bg7 {[%clk 0:02:58]} 5. Nf3 {[%clk 0:03:01]}  e6 {[%clk 0:02:59]} 6. O-O {[%clk 0:03:01]}  Nge7 {[%clk 0:02:59]} 7. Qe1 {[%clk 0:03:00]}  O-O {[%clk 0:02:57]} 8. f5 {[%clk 0:02:57]}  exf5 {[%clk 0:02:51]} 9. Qh4 {[%clk 0:02:56]}  fxe4 {[%clk 0:02:40]} 10. Ng5 {[%clk 0:02:56]}  h6 {[%clk 0:02:33]} 11. Nxf7 {[%clk 0:02:53]}  Rxf7 {[%clk 0:02:32]} 12. Bxf7+ {[%clk 0:02:48]}  Kh7 {[%clk 0:02:31]} 13. Nxe4 {[%clk 0:02:48]}  Nf5 {[%clk 0:02:14]} 14. Bxg6+ {[%clk 0:02:47]}  Kxg6 {[%clk 0:02:10]} 15. Qg4+ {[%clk 0:02:47]}  Kh7 {[%clk 0:02:10]} 16. Qxf5+ {[%clk 0:02:48]}  Kg8 {[%clk 0:02:11]} 17. Qg6 {[%clk 0:02:47]}  Kh8 {[%clk 0:02:05]} 18. d3 {[%clk 0:02:46]}  d5 {[%clk 0:02:04]} 19. Bxh6 {[%clk 0:02:45]}  Bd4+ {[%clk 0:01:58]} 20. Kh1 {[%clk 0:02:44]}  Bd7 {[%clk 0:01:54]} 21. Rf7 {[%clk 0:02:35]}  Qg8 {[%clk 0:01:49]} 22. Qh5 {[%clk 0:02:35]}  Qg4 {[%clk 0:01:42]} 23. Qxg4 {[%clk 0:01:49]}  Bxg4 {[%clk 0:01:41]} 24. Nf6 {[%clk 0:01:49]}  Bxf6 {[%clk 0:01:37]} 25. Rxf6 {[%clk 0:01:49]}  Kh7 {[%clk 0:01:32]} 26. Re1 {[%clk 0:01:31]}  Rg8 {[%clk 0:01:27]} 27. h3 {[%clk 0:01:31]}  Bc8 {[%clk 0:01:18]} 28. Bf4 {[%clk 0:01:31]} 1-0


[Site "https://www.chess.com"]

[Event "Titled Tuesday Blitz July 25 Late 2023"]
[White "Sivakumar, Shaaketh"]
[Black "Balla, Tamas-Kristof"]
[WhiteFideId "30940176"]
[BlackFideId "1208497"]
[WhiteElo "2572"]
[BlackElo "2450"]
[Result "0-1"]
[Round "7"]
[TimeControl "180+2"]
[Date "2023.07.25"]
[WhiteClock "0:00:16"]
[BlackClock "0:00:23"]
[Board "75"]

1. e4 {[%clk 0:03:00]}  c5 {[%clk 0:03:00]} 2. Nf3 {[%clk 0:03:00]}  Nc6 {[%clk 0:03:00]} 3. Nc3 {[%clk 0:02:54]}  g6 {[%clk 0:02:58]} 4. g3 {[%clk 0:02:54]}  Bg7 {[%clk 0:02:57]} 5. Bg2 {[%clk 0:02:54]}  d6 {[%clk 0:02:56]} 6. d3 {[%clk 0:02:54]}  e6 {[%clk 0:02:55]} 7. O-O {[%clk 0:02:55]}  Nge7 {[%clk 0:02:55]} 8. Be3 {[%clk 0:02:53]}  O-O {[%clk 0:02:55]} 9. Qd2 {[%clk 0:02:54]}  Rb8 {[%clk 0:02:46]} 10. Bh6 {[%clk 0:02:54]}  b5 {[%clk 0:02:46]} 11. Bxg7 {[%clk 0:02:50]}  Kxg7 {[%clk 0:02:46]} 12. Ne2 {[%clk 0:02:50]}  b4 {[%clk 0:02:33]} 13. Ne1 {[%clk 0:02:47]}  Bb7 {[%clk 0:02:23]} 14. Kh1 {[%clk 0:02:45]}  a5 {[%clk 0:02:22]} 15. f4 {[%clk 0:02:37]}  f5 {[%clk 0:02:22]} 16. c3 {[%clk 0:02:28]}  Qd7 {[%clk 0:02:20]} 17. Qe3 {[%clk 0:02:23]}  Nd8 {[%clk 0:02:10]} 18. Nf3 {[%clk 0:02:19]}  Nf7 {[%clk 0:02:08]} 19. c4 {[%clk 0:02:12]}  Nh6 {[%clk 0:02:05]} 20. h3 {[%clk 0:02:09]}  Rbe8 {[%clk 0:02:01]} 21. a3 {[%clk 0:02:05]}  e5 {[%clk 0:02:00]} 22. fxe5 {[%clk 0:02:04]}  dxe5 {[%clk 0:01:54]} 23. Nxe5 {[%clk 0:01:58]}  Qd6 {[%clk 0:01:47]} 24. Nf3 {[%clk 0:01:58]}  fxe4 {[%clk 0:01:40]} 25. dxe4 {[%clk 0:01:58]}  Nef5 {[%clk 0:01:24]} 26. Qg5 {[%clk 0:01:42]}  Rxe4 {[%clk 0:01:17]} 27. Rad1 {[%clk 0:01:32]}  Qc7 {[%clk 0:01:17]} 28. Nf4 {[%clk 0:01:13]}  Nxg3+ {[%clk 0:00:59]} 29. Qxg3 {[%clk 0:01:12]}  Rexf4 {[%clk 0:00:59]} 30. Rd3 {[%clk 0:00:58]}  Nf5 {[%clk 0:00:57]} 31. Qe1 {[%clk 0:00:55]}  Re4 {[%clk 0:00:43]} 32. Qd2 {[%clk 0:00:48]}  Ng3+ {[%clk 0:00:41]} 33. Kg1 {[%clk 0:00:48]}  Nxf1 {[%clk 0:00:30]} 34. Bxf1 {[%clk 0:00:25]}  Qg3+ {[%clk 0:00:24]} 35. Bg2 {[%clk 0:00:25]}  Re7 {[%clk 0:00:23]} 36. Rd7 {[%clk 0:00:20]}  Rff7 {[%clk 0:00:23]} 37. Rxe7 {[%clk 0:00:20]}  Rxe7 {[%clk 0:00:24]} 38. Qd1 {[%clk 0:00:18]}  Bxf3 {[%clk 0:00:23]} 39. Qxf3 {[%clk 0:00:16]}  Re1+ {[%clk 0:00:23]} 0-1


[Site "https://www.chess.com"]

[Event "Titled Tuesday Blitz July 25 Late 2023"]
[White "Fonseca Manrique, Enrique"]
[Black "Moore, Nicholas"]
[WhiteFideId "5114330"]
[BlackFideId "4303709"]
[WhiteElo "2554"]
[BlackElo "2449"]
[Result "1-0"]
[Round "7"]
[TimeControl "180+2"]
[Date "2023.07.25"]
[WhiteClock "0:00:04"]
[BlackClock "0:00:06"]
[Board "76"]

1. e4 {[%clk 0:03:00]}  c5 {[%clk 0:02:56]} 2. Nf3 {[%clk 0:02:55]}  e6 {[%clk 0:02:56]} 3. d4 {[%clk 0:02:54]}  cxd4 {[%clk 0:02:57]} 4. Nxd4 {[%clk 0:02:55]}  Nc6 {[%clk 0:02:57]} 5. Nxc6 {[%clk 0:02:55]}  bxc6 {[%clk 0:02:57]} 6. Bd3 {[%clk 0:02:56]}  Ba6 {[%clk 0:02:57]} 7. O-O {[%clk 0:02:50]}  Bxd3 {[%clk 0:02:56]} 8. Qxd3 {[%clk 0:02:48]}  d5 {[%clk 0:02:57]} 9. Qg3 {[%clk 0:02:47]}  Nf6 {[%clk 0:02:53]} 10. Nd2 {[%clk 0:02:42]}  Qb8 {[%clk 0:02:48]} 11. e5 {[%clk 0:02:38]}  Nd7 {[%clk 0:02:43]} 12. Nf3 {[%clk 0:02:38]}  g6 {[%clk 0:01:58]} 13. h4 {[%clk 0:02:18]}  Bg7 {[%clk 0:01:56]} 14. Re1 {[%clk 0:02:17]}  h5 {[%clk 0:01:48]} 15. Rb1 {[%clk 0:02:07]}  Qb4 {[%clk 0:01:41]} 16. Bf4 {[%clk 0:02:02]}  Rb8 {[%clk 0:01:37]} 17. b3 {[%clk 0:01:58]}  Qa3 {[%clk 0:01:32]} 18. Bg5 {[%clk 0:01:50]}  Qb4 {[%clk 0:01:26]} 19. c4 {[%clk 0:01:48]}  O-O {[%clk 0:01:23]} 20. Rbc1 {[%clk 0:01:40]}  Rfc8 {[%clk 0:01:19]} 21. Qf4 {[%clk 0:01:38]}  a5 {[%clk 0:01:10]} 22. Bh6 {[%clk 0:01:36]}  Bxh6 {[%clk 0:01:04]} 23. Qxh6 {[%clk 0:01:35]}  Qf8 {[%clk 0:01:04]} 24. Qf4 {[%clk 0:01:31]}  a4 {[%clk 0:01:00]} 25. bxa4 {[%clk 0:01:30]}  Ra8 {[%clk 0:01:00]} 26. cxd5 {[%clk 0:01:25]}  cxd5 {[%clk 0:00:59]} 27. Ng5 {[%clk 0:01:25]}  Nc5 {[%clk 0:00:52]} 28. Qf6 {[%clk 0:00:59]}  Qg7 {[%clk 0:00:31]} 29. Qe7 {[%clk 0:00:56]}  Nd3 {[%clk 0:00:26]} 30. Rxc8+ {[%clk 0:00:53]}  Rxc8 {[%clk 0:00:26]} 31. Re3 {[%clk 0:00:47]}  Rc1+ {[%clk 0:00:23]} 32. Kh2 {[%clk 0:00:47]}  Nxe5 {[%clk 0:00:23]} 33. f3 {[%clk 0:00:32]}  Nc4 {[%clk 0:00:21]} 34. Re2 {[%clk 0:00:30]}  Qf8 {[%clk 0:00:20]} 35. Qf6 {[%clk 0:00:29]}  Qd6+ {[%clk 0:00:20]} 36. g3 {[%clk 0:00:28]}  Qd7 {[%clk 0:00:19]} 37. g4 {[%clk 0:00:24]}  Qc7+ {[%clk 0:00:18]} 38. Kg2 {[%clk 0:00:24]}  hxg4 {[%clk 0:00:15]} 39. fxg4 {[%clk 0:00:25]}  Nd6 {[%clk 0:00:16]} 40. h5 {[%clk 0:00:23]}  Rc2 {[%clk 0:00:16]} 41. Rxc2 {[%clk 0:00:17]}  Qxc2+ {[%clk 0:00:17]} 42. Kh3 {[%clk 0:00:15]}  Qd3+ {[%clk 0:00:17]} 43. Kh4 {[%clk 0:00:14]}  gxh5 {[%clk 0:00:08]} 44. Kxh5 {[%clk 0:00:07]}  Qa3 {[%clk 0:00:02]} 45. Kh6 {[%clk 0:00:04]}  Nf5+ {[%clk 0:00:02]} 46. gxf5 {[%clk 0:00:04]}  Qf8+ {[%clk 0:00:03]} 47. Kh5 {[%clk 0:00:04]}  exf5 {[%clk 0:00:04]} 48. Qxf5 {[%clk 0:00:04]}  Qg7 {[%clk 0:00:04]} 49. Qxd5 {[%clk 0:00:04]}  Qg6+ {[%clk 0:00:04]} 50. Kg4 {[%clk 0:00:05]}  Qa6 {[%clk 0:00:05]} 51. Qxf7+ {[%clk 0:00:03]}  Kh8 {[%clk 0:00:06]} 52. Qh7# {[%clk 0:00:04]} 1-0


[Site "https://www.chess.com"]